bitfinex/quotes_BTCUSD_20250102
["timestamp","ask_amount","ask_price","bid_price","bid_amount"]
[1735827704558,0.54146962,96367.0,96366.0,0.00557938]
[1735827705001,0.52521827,96367.0,96366.0,0.00557938]
[1735827705470,0.52521827,96367.0,96366.0,0.1095657]
[1735827705786,0.51885,96367.0,96366.0,0.1095657]
[1735827705989,0.52405452,96367.0,96366.0,0.1095657]
[1735827706428,0.52405452,96367.0,96366.0,0.1045657]
[1735827706829,0.52605452,96367.0,96366.0,0.01557938]
[1735827707891,0.76667923,96367.0,96366.0,0.01557938]
[1735827708095,0.97066555,96367.0,96366.0,0.01557938]
[1735827708917,0.96966555,96367.0,96366.0,0.00957938]
[1735827709134,0.96966555,96367.0,96366.0,0.00257938]
[1735827709135,0.96866555,96367.0,96366.0,0.00257938]
[1735827709342,0.96866555,96367.0,96366.0,0.00557938]
[1735827709718,0.96866555,96367.0,96366.0,0.00057938]
[1735827709916,0.96866555,96367.0,96366.0,0.00157938]
[1735827710124,0.96866555,96367.0,96366.0,0.00357938]
[1735827711200,0.96866555,96367.0,96366.0,0.00157938]
[1735827711405,0.86467923,96367.0,96366.0,0.00057938]
[1735827711606,0.86467923,96367.0,96366.0,0.00257938]
[1735827711844,0.77405452,96367.0,96366.0,0.00257938]
[1735827712042,0.77405452,96367.0,96366.0,0.00357938]
[1735827712460,0.86467923,96367.0,96366.0,0.00357938]
[1735827712686,0.76467923,96367.0,96366.0,0.00357938]
[1735827712911,0.88093029,96367.0,96366.0,0.00357938]
[1735827713335,0.63093029,96367.0,96366.0,0.00357938]
[1735827713539,0.73093029,96367.0,96366.0,0.00357938]
[1735827714081,0.52405452,96367.0,96366.0,0.00357938]
[1735827714295,0.52405452,96367.0,96366.0,0.02469272]
[1735827714691,0.51885,96367.0,96366.0,0.00357938]
[1735827714806,0.51885,96367.0,96366.0,0.00157938]
[1735827715010,0.52405497,96367.0,96366.0,0.00057938]
[1735827715208,0.52405497,96367.0,96366.0,0.00357938]
[1735827715412,0.52405497,96367.0,96366.0,0.00157938]
[1735827715611,0.52405497,96367.0,96366.0,0.02249272]
[1735827715817,0.52505497,96367.0,96366.0,0.02949272]
[1735827716040,0.52505497,96367.0,96366.0,0.03349272]
[1735827716217,0.52405497,96367.0,96366.0,0.02549272]
[1735827716414,0.52505497,96367.0,96366.0,0.03149272]
[1735827716616,0.52505497,96367.0,96366.0,0.01057938]
[1735827717675,0.52505497,96367.0,96366.0,0.00657938]
[1735827718091,0.52505497,96367.0,96366.0,0.00957938]
[1735827719304,0.51985,96367.0,96366.0,0.00957938]
[1735827719508,0.51985,96367.0,96366.0,0.1135657]
[1735827719689,0.52509842,96367.0,96366.0,0.1135657]
[1735827719890,0.51985,96367.0,96366.0,0.1135657]
[1735827720090,0.52510586,96367.0,96366.0,0.1135657]
[1735827720544,0.52510586,96367.0,96366.0,0.00957938]
[1735827720919,0.52410586,96367.0,96366.0,0.00057938]
[1735827721146,0.52510586,96367.0,96366.0,0.01257938]
[1735827721791,0.52510586,96367.0,96366.0,0.00057938]
[1735827721971,0.52610586,96367.0,96366.0,0.01257938]
[1735827722594,0.61673057,96367.0,96366.0,0.00857938]
[1735827722794,0.79183057,96367.0,96366.0,0.01257938]
[1735827723010,1.13854084,96367.0,96366.0,0.01257938]
[1735827723213,1.04381689,96367.0,96366.0,0.00457938]
[1735827723793,1.06006824,96367.0,96366.0,0.00457938]
[1735827724206,1.06006824,96367.0,96366.0,0.00057938]
[1735827724383,1.06006824,96367.0,96366.0,0.00357938]
[1735827724563,1.06006824,96367.0,96366.0,0.01057938]
[1735827724926,1.06106824,96367.0,96366.0,0.00057938]
[1735827725323,1.06106824,96367.0,96366.0,0.00257938]
[1735827725529,1.05581238,96367.0,96366.0,0.00257938]
[1735827732023,0.95182606,96367.0,96366.0,0.00257938]
[1735827732733,0.85182606,96367.0,96366.0,0.00257938]
[1735827732951,0.80182606,96367.0,96366.0,0.00257938]
[1735827733184,0.51985,96367.0,96366.0,0.00257938]
[1735827733389,0.51985,96367.0,96366.0,0.00157938]
[1735827733601,0.51985,96367.0,96366.0,0.02249242]
[1735827733804,0.51985,96367.0,96366.0,0.02349242]
[1735827734643,0.51885,96367.0,96366.0,0.02249242]
[1735827734847,0.51885,96367.0,96366.0,0.02149242]
[1735827735059,0.51885,96367.0,96366.0,0.00157938]
[1735827735261,0.51885,96367.0,96366.0,0.00457938]
[1735827735549,0.51885,96367.0,96366.0,0.01357938]
[1735827735795,0.71047471,96367.0,96366.0,0.01357938]
[1735827736006,0.51985,96367.0,96366.0,0.01357938]
[1735827736213,0.63610019,96367.0,96366.0,0.01357938]
[1735827736597,0.7267249,96367.0,96366.0,0.01357938]
[1735827736802,0.63610019,96367.0,96366.0,0.01357938]
[1735827737036,0.63610019,96367.0,96366.0,0.00957938]
[1735827737232,0.63610019,96367.0,96366.0,0.01457938]
[1735827738651,0.51985,96367.0,96366.0,0.03679262]
[1735827738790,0.51985,96367.0,96366.0,0.14077894]
[1735827739003,0.51985,96367.0,96366.0,0.22167894]
[1735827740413,0.51985,96367.0,96366.0,0.26967894]
[1735827741303,0.51985,96367.0,96366.0,0.26467894]
[1735827741504,0.51985,96367.0,96366.0,0.27405423]
[1735827741725,0.51885,96367.0,96366.0,0.40943087]
[1735827742064,0.51985,96367.0,96366.0,0.41843087]
[1735827742438,0.51985,96367.0,96366.0,0.26967894]
[1735827742623,0.51985,96367.0,96366.0,0.27905423]
[1735827742823,0.51985,96367.0,96366.0,0.26967894]
[1735827743165,0.51985,96367.0,96366.0,0.27405423]
[1735827743409,0.51985,96367.0,96366.0,0.28005423]
[1735827745179,0.51985,96367.0,96366.0,0.43610964]
[1735827745387,0.51985,96367.0,96366.0,0.45910964]
[1735827745560,0.51985,96367.0,96366.0,0.70236154]
[1735827746124,0.51985,96367.0,96366.0,0.69636154]
[1735827746479,0.51985,96367.0,96366.0,1.23197295]
[1735827746815,0.0001708,96388.0,96385.0,0.00937529]
[1735827747040,0.0001708,96388.0,96386.0,0.31148532]
[1735827747166,0.0001708,96388.0,96387.0,0.01592747]
[1735827747363,0.0001708,96388.0,96387.0,0.11991379]
[1735827748817,0.0001708,96388.0,96387.0,0.12891379]
[1735827749878,0.0001708,96388.0,96387.0,0.13291379]
[1735827750081,0.0001708,96388.0,96387.0,0.13706979]
[1735827750920,0.0001708,96388.0,96387.0,0.13291379]
[1735827751691,0.0001708,96388.0,96387.0,0.11698632]
[1735827752239,0.0001708,96388.0,96387.0,0.013]
[1735827753314,0.01641731,96388.0,96387.0,0.013]
[1735827755086,0.01641731,96388.0,96387.0,0.11698632]
[1735827755929,0.0001708,96388.0,96387.0,0.11698632]
[1735827767185,0.0001708,96388.0,96387.0,0.27293676]
[1735827767398,0.0001708,96388.0,96387.0,0.11698632]
[1735827767899,0.0001708,96388.0,96387.0,0.10264828]
[1735827770672,0.0001708,96388.0,96387.0,0.39751213]
[1735827771078,0.0001708,96388.0,96387.0,0.42051213]
[1735827771304,8e-07,96388.0,96387.0,0.57051213]
[1735827771919,8e-07,96388.0,96387.0,0.57951213]
[1735827772341,0.0001708,96396.0,96395.0,0.36875429]
[1735827772545,0.0001308,96396.0,96395.0,1.65605502]
[1735827772752,8e-07,96396.0,96395.0,1.80605502]
[1735827773520,0.00014891,96396.0,96395.0,1.80605502]
[1735827773951,0.00014891,96396.0,96395.0,2.38235665]
[1735827774171,9.1e-07,96396.0,96395.0,2.92435665]
[1735827774374,9.1e-07,96400.0,96399.0,0.44504629]
[1735827774693,0.0001712,96406.0,96405.0,0.00937529]
[1735827774967,0.0001712,96406.0,96405.0,1.44900518]
[1735827775172,0.0001712,96406.0,96405.0,1.57610518]
[1735827775755,0.0001712,96406.0,96405.0,1.78356318]
[1735827775963,0.01641012,96406.0,96405.0,1.79256318]
[1735827776575,0.01641012,96406.0,96405.0,2.13594409]
[1735827776920,0.01641012,96406.0,96405.0,2.14194409]
[1735827777910,2e-07,96406.0,96405.0,2.14194409]
[1735827779467,2e-07,96406.0,96405.0,2.16494409]
[1735827780538,2e-07,96406.0,96405.0,2.16932948]
[1735827780738,2e-07,96406.0,96405.0,2.16032948]
[1735827780985,2e-07,96406.0,96405.0,2.40075733]
[1735827781208,2e-07,96406.0,96405.0,2.40975733]
[1735827781627,8.55e-05,96435.0,96413.0,0.21681529]
[1735827781829,8.55e-05,96435.0,96413.0,0.47728956]
[1735827782576,8.55e-05,96435.0,96413.0,0.62728956]
[1735827782885,1e-06,96414.0,96413.0,0.62728956]
[1735827783235,1e-06,96414.0,96413.0,0.63428956]
[1735827783784,1e-06,96414.0,96413.0,0.62728956]
[1735827784229,1e-06,96414.0,96413.0,0.63528956]
[1735827784448,1e-06,96414.0,96413.0,0.97831055]
[1735827784650,1e-06,96414.0,96413.0,0.98731055]
[1735827785278,1e-06,96414.0,96413.0,1.07141055]
[1735827785481,1e-06,96414.0,96413.0,1.63641055]
[1735827785887,1e-06,96414.0,96413.0,1.8222798]
[1735827786308,1e-06,96422.0,96421.0,0.38979829]
[1735827786562,1e-06,96422.0,96421.0,1.76067129]
[1735827786967,1e-06,96422.0,96421.0,2.45817129]
[1735827787175,1e-06,96422.0,96421.0,2.48740771]
[1735827787355,8.55e-05,96435.0,96434.0,0.00937529]
[1735827787594,0.00023361,96435.0,96434.0,1.75568016]
[1735827787774,6.1e-07,96435.0,96434.0,1.75568016]
[1735827788648,6.1e-07,96435.0,96434.0,1.77667991]
[1735827789087,6.1e-07,96435.0,96434.0,1.78567991]
[1735827789909,8.54e-05,96463.0,96448.0,0.21674029]
[1735827790113,8.54e-05,96463.0,96448.0,1.51104031]
[1735827791153,8.54e-05,96463.0,96448.0,1.51804031]
[1735827791963,8.54e-05,96463.0,96448.0,1.52704031]
[1735827793185,8.54e-05,96463.0,96448.0,1.67704031]
[1735827793388,8.54e-05,96463.0,96448.0,1.72244031]
[1735827794350,8.54e-05,96463.0,96448.0,1.67704031]
[1735827794685,8.54e-05,96463.0,96448.0,1.66766502]
[1735827794933,0.0752,96451.0,96448.0,1.36143679]
[1735827795134,0.0752,96451.0,96448.0,1.37081208]
[1735827795345,0.0752,96451.0,96448.0,0.11998632]
[1735827795756,0.0752,96451.0,96448.0,0.11098632]
[1735827795979,0.00509961,96449.0,96442.0,0.09275385]
[1735827796175,0.00509961,96449.0,96448.0,0.009]
[1735827796372,0.207734,96449.0,96448.0,0.013]
[1735827796515,0.21248782,96449.0,96448.0,0.013]
[1735827796795,0.21248782,96449.0,96448.0,0.009]
[1735827797038,0.21248782,96449.0,96448.0,0.012]
[1735827797267,0.29518782,96449.0,96448.0,0.012]
[1735827797464,0.38581253,96449.0,96448.0,0.003]
[1735827797677,0.38581253,96449.0,96448.0,0.011]
[1735827797879,0.38581253,96449.0,96448.0,0.003]
[1735827798284,0.38581253,96449.0,96448.0,0.011]
[1735827798577,0.38581253,96449.0,96448.0,0.003]
[1735827798959,0.0792,96442.0,96432.0,0.207399]
[1735827799231,0.0792,96433.0,96428.0,0.02047188]
[1735827799453,0.207408,96429.0,96410.0,1.03408547]
[1735827799696,0.207414,96426.0,96417.0,0.00014811]
[1735827799905,0.207414,96426.0,96418.0,0.10398632]
[1735827800217,0.00471589,96425.0,96418.0,0.10398632]
[1735827800643,0.207404,96430.0,96418.0,0.10398632]
[1735827801020,0.00472336,96429.0,96418.0,0.10398632]
[1735827801228,0.207408,96428.0,96418.0,0.10398632]
[1735827801590,0.00472608,96427.0,96418.0,0.10398632]
[1735827802221,0.00472608,96427.0,96419.0,0.00103701]
[1735827802422,0.207404,96430.0,96419.0,0.00103701]
[1735827802616,0.00472421,96426.0,96419.0,0.00103701]
[1735827802783,0.207404,96430.0,96419.0,0.00103701]
[1735827802999,0.00472234,96425.0,96419.0,0.00103701]
[1735827803221,0.207406,96429.0,96419.0,0.00103701]
[1735827803421,0.207406,96429.0,96419.0,0.001]
[1735827803659,0.20741,96427.0,96419.0,0.001]
[1735827803885,0.20741,96427.0,96418.0,0.10502333]
[1735827804084,0.00472421,96426.0,96418.0,0.10398632]
[1735827804283,0.207415,96425.0,96419.0,0.001]
[1735827804479,0.00472047,96424.0,96419.0,0.001]
[1735827804699,0.00472047,96424.0,96419.0,0.02487589]
[1735827804920,0.50543271,96430.0,96419.0,0.02187589]
[1735827805125,0.00471861,96423.0,96419.0,0.02187589]
[1735827805579,0.02095842,96423.0,96419.0,0.02087589]
[1735827805948,0.02095842,96423.0,96419.0,0.02387589]
[1735827806851,0.02095842,96423.0,96419.0,0.02087589]
[1735827807141,0.02095842,96423.0,96417.0,0.20757911]
[1735827807481,0.02095842,96423.0,96420.0,0.41485]
[1735827807853,0.00471861,96423.0,96420.0,0.207425]
[1735827808085,0.00471861,96423.0,96419.0,0.005]
[1735827808416,0.00471861,96423.0,96419.0,0.0011708]
[1735827808623,0.00471861,96423.0,96420.0,0.004]
[1735827809351,0.00465617,96422.0,96420.0,0.004]
[1735827809552,0.00471861,96423.0,96420.0,0.207425]
[1735827809769,0.00471861,96423.0,96420.0,0.208425]
[1735827809925,0.00471861,96423.0,96420.0,0.212425]
[1735827810124,0.00471861,96423.0,96420.0,0.211425]
[1735827810569,0.00471861,96423.0,96420.0,0.212425]
[1735827811148,0.00471861,96423.0,96420.0,0.41585]
[1735827811359,0.00471861,96423.0,96420.0,0.42085]
[1735827811944,0.00471861,96423.0,96420.0,0.41585]
[1735827812137,0.00471861,96423.0,96422.0,0.207421]
[1735827812967,0.00471861,96423.0,96422.0,0.46029393]
[1735827813182,0.00471861,96423.0,96422.0,0.46966922]
[1735827813612,0.00471861,96423.0,96422.0,0.47066922]
[1735827813984,0.00471861,96423.0,96422.0,0.46966922]
[1735827814189,0.02095607,96423.0,96422.0,0.46966922]
[1735827814390,0.02095607,96423.0,96422.0,0.47466922]
[1735827814611,0.02095607,96423.0,96422.0,0.46529393]
[1735827814812,0.02095607,96423.0,96422.0,0.31640732]
[1735827815023,0.02095607,96423.0,96422.0,0.32040732]
[1735827815220,0.02095607,96423.0,96422.0,0.31640732]
[1735827815622,0.02095607,96423.0,96422.0,0.32040732]
[1735827815950,0.02095607,96423.0,96422.0,0.31740732]
[1735827816080,0.02095607,96423.0,96422.0,0.32640732]
[1735827816493,0.02095607,96423.0,96422.0,0.32978261]
[1735827816702,0.02095607,96423.0,96422.0,0.33478261]
[1735827817153,0.02095607,96423.0,96422.0,0.48750237]
[1735827818566,0.00471861,96423.0,96422.0,0.48750237]
[1735827821162,0.00471861,96423.0,96422.0,0.56970237]
[1735827822612,8.54e-05,96435.0,96434.0,0.207395]
[1735827822816,8.54e-05,96435.0,96434.0,0.31138132]
[1735827823222,0.01632174,96435.0,96434.0,0.31138132]
[1735827824563,8.54e-05,96435.0,96434.0,0.31938132]
[1735827825371,8.54e-05,96435.0,96434.0,0.33464311]
[1735827825771,8.54e-05,96435.0,96434.0,0.34364311]
[1735827825977,8.54e-05,96435.0,96434.0,0.34164311]
[1735827826219,8.54e-05,96435.0,96434.0,0.34464311]
[1735827827432,0.0827854,96435.0,96434.0,0.11598632]
[1735827829629,0.0827854,96435.0,96434.0,0.012]
[1735827829834,0.1322854,96435.0,96434.0,0.012]
[1735827830011,0.22291011,96435.0,96434.0,0.012]
[1735827830693,0.22291011,96435.0,96434.0,0.009]
[1735827831126,0.207416,96425.0,96420.0,0.0001708]
[1735827831311,0.207416,96425.0,96421.0,0.00935344]
[1735827831716,0.207416,96425.0,96420.0,0.0001708]
[1735827831967,0.2074,96432.0,96420.0,0.0001708]
[1735827832527,0.207408,96428.0,96421.0,0.003]
[1735827832727,0.207408,96428.0,96420.0,0.0001708]
[1735827833449,0.077,96423.0,96420.0,0.0001708]
[1735827834133,0.077,96423.0,96420.0,0.0021708]
[1735827834425,0.077,96423.0,96420.0,0.0001708]
[1735827834629,0.207421,96422.0,96420.0,0.0001708]
[1735827834825,0.207421,96422.0,96420.0,0.0051708]
[1735827835058,0.09324058,96423.0,96420.0,0.0051708]
[1735827835584,0.09324058,96423.0,96420.0,0.0011708]
[1735827835792,0.207421,96422.0,96420.0,0.0011708]
[1735827836017,0.09324058,96423.0,96420.0,0.0001708]
[1735827836250,0.09324058,96423.0,96420.0,0.0011708]
[1735827836577,0.077,96423.0,96420.0,0.02708085]
[1735827836782,0.077,96423.0,96420.0,0.02608085]
[1735827837198,0.077,96423.0,96420.0,0.02708085]
[1735827837567,0.077,96423.0,96420.0,0.02608085]
[1735827837763,0.077,96423.0,96420.0,0.02108085]
[1735827838128,0.077,96423.0,96420.0,0.02608085]
[1735827840350,0.077,96423.0,96421.0,0.01723066]
[1735827842183,0.077,96423.0,96421.0,0.02123066]
[1735827842649,0.09324022,96423.0,96421.0,0.02123066]
[1735827842968,0.077,96423.0,96421.0,0.02123066]
[1735827843224,0.077,96423.0,96421.0,0.02223066]
[1735827843717,0.077,96423.0,96422.0,0.02091005]
[1735827844797,0.077,96423.0,96421.0,0.004]
[1735827844997,0.077,96423.0,96422.0,0.001]
[1735827845320,0.077,96423.0,96422.0,0.005]
[1735827845798,0.09324021,96423.0,96422.0,0.005]
[1735827846019,0.09332561,96423.0,96422.0,0.005]
[1735827846374,0.09332561,96423.0,96422.0,0.004]
[1735827847069,0.0770854,96423.0,96422.0,0.004]
[1735827847989,0.0770854,96423.0,96422.0,0.005]
[1735827849674,8.54e-05,96423.0,96422.0,0.02629217]
[1735827850344,8.54e-05,96423.0,96422.0,0.005]
[1735827853241,0.01632545,96423.0,96422.0,0.005]
[1735827855983,8.54e-05,96423.0,96422.0,0.005]
[1735827860120,8.54e-05,96423.0,96422.0,0.10898632]
[1735827860549,8.54e-05,96423.0,96422.0,0.2700334]
[1735827861772,8.54e-05,96423.0,96422.0,0.2660334]
[1735827862246,8.54e-05,96423.0,96422.0,0.2750334]
[1735827862784,8.54e-05,96423.0,96422.0,0.2740334]
[1735827862987,0.01632297,96423.0,96422.0,0.80352943]
[1735827863192,0.01632297,96423.0,96422.0,0.80452943]
[1735827863529,8.54e-05,96423.0,96422.0,0.80352943]
[1735827863911,8.54e-05,96423.0,96422.0,0.80852943]
[1735827865096,8.54e-05,96423.0,96422.0,0.64748235]
[1735827865875,8.54e-05,96423.0,96422.0,0.11798632]
[1735827870302,8.54e-05,96423.0,96422.0,0.27522421]
[1735827870510,8.54e-05,96423.0,96422.0,0.27539501]
[1735827870975,8.54e-05,96423.0,96422.0,0.2847703]
[1735827872802,8.54e-05,96423.0,96422.0,0.62895221]
[1735827874165,0.0163221,96423.0,96422.0,0.62895221]
[1735827876324,8.54e-05,96423.0,96422.0,0.62895221]
[1735827878811,8.54e-05,96423.0,96422.0,0.86197535]
[1735827880851,8.54e-05,96423.0,96422.0,0.62895221]
[1735827882733,0.01632268,96423.0,96422.0,0.62895221]
[1735827882933,8.54e-05,96423.0,96422.0,0.62895221]
[1735827884401,8.54e-05,96423.0,96422.0,0.77895221]
[1735827884610,8.54e-05,96423.0,96422.0,0.90935221]
[1735827885182,8.54e-05,96423.0,96422.0,1.09576742]
[1735827885786,8.54e-05,96423.0,96422.0,1.09076742]
[1735827885994,8.54e-05,96423.0,96422.0,1.08176742]
[1735827886167,8.54e-05,96423.0,96422.0,1.08676742]
[1735827886382,8.54e-05,96423.0,96422.0,0.90935221]
[1735827886587,8.54e-05,96435.0,96434.0,0.21677029]
[1735827886923,8.54e-05,96435.0,96434.0,1.50416005]
[1735827888383,8.54e-05,96435.0,96434.0,1.84834196]
[1735827888804,8.54e-05,96435.0,96434.0,1.85334196]
[1735827889072,8.54e-05,96435.0,96434.0,1.86234196]
[1735827889248,8.54e-05,96435.0,96434.0,1.96400006]
[1735827889461,8.54e-05,96435.0,96434.0,2.15480006]
[1735827889739,8.54e-05,96435.0,96434.0,2.2021579]
[1735827889986,8.54e-05,96435.0,96434.0,2.1931579]
[1735827890180,8.54e-05,96435.0,96434.0,2.1871579]
[1735827890379,8.54e-05,96435.0,96434.0,2.16380006]
[1735827890589,4e-07,96435.0,96434.0,2.7521492]
[1735827891007,4e-07,96435.0,96434.0,2.7611492]
[1735827891219,4e-07,96435.0,96434.0,2.7681492]
[1735827892268,4e-07,96435.0,96434.0,2.7501492]
[1735827892457,4e-07,96435.0,96434.0,2.7591492]
[1735827892667,4e-07,96435.0,96434.0,2.7501492]
[1735827892887,4e-07,96435.0,96434.0,2.7431492]
[1735827893134,4e-07,96435.0,96434.0,2.7521492]
[1735827893346,0.000371,96449.0,96448.0,0.44934029]
[1735827893523,0.000371,96449.0,96448.0,1.74104687]
[1735827895179,0.000371,96449.0,96448.0,2.08522878]
[1735827896037,0.000371,96449.0,96448.0,2.09422878]
[1735827896243,0.000371,96449.0,96448.0,2.10122878]
[1735827898123,0.000371,96449.0,96448.0,2.01862878]
[1735827898357,0.000371,96449.0,96448.0,2.01957892]
[1735827898492,0.000371,96449.0,96448.0,2.02895421]
[1735827899708,0.000371,96449.0,96448.0,2.07047621]
[1735827900144,0.000371,96449.0,96448.0,1.7262943]
[1735827900358,0.000371,96449.0,96448.0,1.71596887]
[1735827903033,0.000371,96449.0,96448.0,1.80893921]
[1735827903439,0.0786,96461.0,96460.0,0.207339]
[1735827903643,0.0786,96461.0,96460.0,0.31132532]
[1735827904723,0.0786,96461.0,96460.0,0.32432532]
[1735827905987,0.000171,96464.0,96460.0,0.53166432]
[1735827906209,0.000171,96464.0,96462.0,0.207335]
[1735827906424,0.000171,96464.0,96462.0,0.47665303]
[1735827907795,0.000171,96464.0,96462.0,0.48065303]
[1735827908001,0.000171,96464.0,96462.0,0.50099007]
[1735827909183,0.000171,96464.0,96462.0,0.50999007]
[1735827910857,0.000171,96464.0,96462.0,0.64944558]
[1735827911834,0.000171,96464.0,96462.0,1.03903292]
[1735827912044,0.000171,96464.0,96462.0,1.18653292]
[1735827912251,0.000171,96464.0,96462.0,1.33653292]
[1735827913195,0.000171,96464.0,96462.0,1.33603292]
[1735827913679,0.000171,96464.0,96462.0,1.15009224]
[1735827917106,0.000171,96464.0,96462.0,1.69209224]
[1735827917295,0.000171,96464.0,96462.0,1.54459224]
[1735827917996,0.000171,96464.0,96462.0,1.53521695]
[1735827918204,0.000171,96464.0,96462.0,1.54459224]
[1735827918828,0.01631582,96463.0,96462.0,1.54459224]
[1735827919053,0.01631582,96463.0,96462.0,1.73048552]
[1735827919258,0.01574987,96463.0,96462.0,1.73048552]
[1735827919670,0.01583527,96463.0,96462.0,1.73048552]
[1735827920030,0.01583527,96463.0,96462.0,1.29444359]
[1735827921012,8.54e-05,96463.0,96462.0,1.29444359]
[1735827921439,8.54e-05,96463.0,96462.0,1.44264359]
[1735827921617,0.00014681,96463.0,96462.0,1.44264359]
[1735827922506,0.00014681,96463.0,96462.0,1.47500291]
[1735827922931,0.00014681,96463.0,96462.0,1.72521927]
[1735827923320,0.000171,96464.0,96463.0,0.18237529]
[1735827923520,0.000171,96464.0,96463.0,0.47447673]
[1735827924054,6e-07,96470.0,96469.0,0.23969529]
[1735827924260,6e-07,96470.0,96469.0,1.7119578]
[1735827924466,6e-07,96470.0,96469.0,1.7907578]
[1735827926083,6e-07,96470.0,96469.0,2.67592768]
[1735827926309,6e-07,96470.0,96469.0,2.69192768]
[1735827928791,6e-07,96470.0,96469.0,2.80122768]
[1735827929606,7e-08,96470.0,96469.0,2.80122768]
[1735827929823,0.0001708,96481.0,96480.0,0.00937529]
[1735827930030,0.0001708,96481.0,96480.0,1.35474308]
[1735827930241,0.0001708,96481.0,96480.0,1.50662435]
[1735827930870,8e-07,96481.0,96480.0,1.50662435]
[1735827931292,8e-07,96481.0,96480.0,1.51162435]
[1735827931699,8e-07,96481.0,96480.0,1.85479423]
[1735827932615,8e-07,96481.0,96480.0,1.86379423]
[1735827933061,8e-07,96481.0,96480.0,1.91359423]
[1735827933584,6e-07,96482.0,96481.0,0.15937529]
[1735827933758,6e-07,96482.0,96481.0,0.42138897]
[1735827934400,0.01622512,96486.0,96484.0,0.00937529]
[1735827934601,0.01622512,96486.0,96484.0,0.41573131]
[1735827935219,0.0756854,96503.0,96499.0,0.207256]
[1735827935432,0.0756854,96503.0,96499.0,0.31124232]
[1735827935637,0.00053345,96500.0,96499.0,0.31124232]
[1735827936609,0.00053345,96500.0,96499.0,0.31924232]
[1735827944367,0.00061885,96500.0,96499.0,0.31924232]
[1735827944976,0.00061885,96500.0,96499.0,0.34048539]
[1735827951900,0.00061885,96500.0,96499.0,0.38198939]
[1735827956648,0.00061885,96500.0,96499.0,0.47498236]
[1735827958989,0.00061885,96500.0,96499.0,0.86541221]
[1735827960492,0.00061885,96500.0,96499.0,0.9574875]
[1735827961285,0.00061885,96500.0,96499.0,0.81799804]
[1735827961491,0.0463,96537.0,96510.0,0.21660729]
[1735827961721,0.00031898,96511.0,96510.0,1.58451194]
[1735827962553,0.00031898,96511.0,96510.0,1.55207908]
[1735827962938,0.00031898,96511.0,96510.0,1.55807908]
[1735827963210,0.00031898,96511.0,96510.0,1.55207908]
[1735827963385,0.00031898,96511.0,96510.0,1.55607908]
[1735827963599,0.00031898,96511.0,96510.0,1.90001244]
[1735827963766,0.0774,96530.0,96513.0,0.00937529]
[1735827963975,0.0774,96530.0,96513.0,0.11336161]
[1735827964611,0.0774,96530.0,96513.0,0.10398632]
[1735827965591,0.0799854,96514.0,96510.0,0.34393336]
[1735827965696,0.0799854,96514.0,96513.0,0.009]
[1735827965902,0.0799854,96514.0,96513.0,0.58579958]
[1735827966506,0.0799854,96514.0,96513.0,0.58079958]
[1735827966907,0.0799854,96514.0,96513.0,0.58379958]
[1735827967101,0.0799854,96514.0,96513.0,0.008]
[1735827967366,0.0799854,96514.0,96513.0,0.011]
[1735827968134,0.0799854,96514.0,96513.0,0.003]
[1735827968538,0.0799854,96514.0,96513.0,0.011]
[1735827968994,0.0799854,96514.0,96513.0,0.008]
[1735827969201,0.0799854,96514.0,96505.0,0.207241]
[1735827969399,0.0799854,96514.0,96513.0,0.002]
[1735827969600,0.0799854,96514.0,96513.0,0.008]
[1735827969866,0.0799854,96514.0,96506.0,0.10398632]
[1735827970134,0.0799854,96514.0,96513.0,0.008]
[1735827970337,0.0799854,96514.0,96513.0,0.011]
[1735827971130,0.0799854,96514.0,96513.0,0.02249863]
[1735827971527,0.0799854,96514.0,96513.0,0.01449863]
[1735827971797,0.0799854,96514.0,96513.0,0.02049863]
[1735827972239,0.0799854,96514.0,96513.0,0.01749863]
[1735827972402,0.0799854,96514.0,96513.0,0.12148495]
[1735827972738,0.0799854,96514.0,96513.0,0.32870995]
[1735827973362,0.0799854,96514.0,96513.0,0.33070995]
[1735827973784,0.0799854,96514.0,96513.0,0.12348495]
[1735827974223,0.0799854,96514.0,96513.0,0.33070995]
[1735827974442,0.0799854,96514.0,96513.0,0.31921132]
[1735827974621,0.0799854,96514.0,96513.0,0.002]
[1735827974829,0.3369084,96514.0,96513.0,0.002]
[1735827975030,0.3369084,96514.0,96513.0,0.009]
[1735827975211,0.1296854,96514.0,96513.0,0.012]
[1735827975779,0.1296854,96514.0,96507.0,0.207238]
[1735827975925,0.1296854,96514.0,96513.0,0.004]
[1735827976125,0.1296854,96514.0,96513.0,0.005]
[1735827976340,0.1296854,96514.0,96513.0,0.001]
[1735827976579,0.1296854,96514.0,96513.0,0.009]
[1735827977012,0.1296854,96514.0,96513.0,0.012]
[1735827977913,0.1296854,96514.0,96513.0,0.003]
[1735827978121,0.1296854,96514.0,96507.0,0.31122432]
[1735827978358,0.1296854,96514.0,96513.0,0.005]
[1735827978570,0.1296854,96514.0,96513.0,0.007]
[1735827978995,0.1296854,96514.0,96507.0,0.31122432]
[1735827979352,0.1296854,96514.0,96507.0,0.31822332]
[1735827979769,0.1296854,96514.0,96507.0,0.31622332]
[1735827979970,0.1296854,96514.0,96513.0,0.002]
[1735827980166,8.54e-05,96514.0,96513.0,0.10598632]
[1735827980536,8.54e-05,96514.0,96513.0,0.11536161]
[1735827981380,8.54e-05,96514.0,96513.0,0.12036161]
[1735827981577,8.54e-05,96514.0,96513.0,0.10598632]
[1735827981802,8.54e-05,96514.0,96513.0,0.10398632]
[1735827982213,8.54e-05,96514.0,96513.0,0.12443103]
[1735827982409,8.54e-05,96514.0,96513.0,0.46861812]
[1735827982613,8.54e-05,96514.0,96513.0,0.47761812]
[1735827983534,8.54e-05,96514.0,96513.0,0.48161812]
[1735827984433,8.54e-05,96514.0,96513.0,0.70567868]
[1735827984642,8.54e-05,96514.0,96513.0,0.71467868]
[1735827985415,8.54e-05,96514.0,96513.0,0.48161812]
[1735827988863,8.54e-05,96514.0,96513.0,0.66802707]
[1735827989815,8.54e-05,96514.0,96513.0,0.64758236]
[1735827990027,8.54e-05,96514.0,96513.0,0.21019316]
[1735827991292,8.54e-05,96514.0,96513.0,0.11698632]
[1735827997219,8.54e-05,96514.0,96513.0,0.013]
[1735827997708,0.0779854,96514.0,96513.0,0.013]
[1735828005321,0.0779854,96514.0,96513.0,0.0131708]
[1735828007427,8.54e-05,96514.0,96513.0,0.11715712]
[1735828019744,8.54e-05,96514.0,96513.0,0.0131708]
[1735828021934,8.54e-05,96514.0,96513.0,0.11715712]
[1735828031257,8.54e-05,96514.0,96513.0,0.46162251]
[1735828032427,8.54e-05,96514.0,96513.0,0.11715712]
[1735828033433,8.54e-05,96514.0,96513.0,0.25714959]
[1735828034631,8.54e-05,96514.0,96513.0,0.46170145]
[1735828048865,8.54e-05,96514.0,96513.0,0.55017674]